bitfinex-derivatives/quotes_SOLF0:USTF0_20251122
["timestamp","ask_amount","ask_price","bid_price","bid_amount"]
[1763830889579,0.0555903,127.87,127.85,3.03]
[1763830892089,0.0555903,127.87,127.85,10.0739]
[1763830892296,0.0555903,127.87,127.86,3.03]
[1763830893494,0.0555903,127.87,127.85,3.03]
[1763830895296,0.0555903,127.87,127.85,10.0739]
[1763830895493,0.0555903,127.87,127.86,3.03]
[1763830895801,16.38,127.92,127.86,3.03]
[1763830895802,2.34604559,127.92,127.86,3.03]
[1763830896205,2.44604559,127.92,127.87,3.3]
[1763830896908,0.05662176,127.91,127.88,3.35832219]
[1763830897406,0.15662176,127.91,127.88,3.35832219]
[1763830897711,0.05662176,127.91,127.88,3.35832219]
[1763830897898,0.05662176,127.91,127.88,10.40052219]
[1763830898104,0.05662176,127.91,127.89,3.06]
[1763830898811,0.05662176,127.91,127.9,3.06]
[1763830901905,2.34604559,127.94,127.9,3.06]
[1763830902110,2.43604559,127.96,127.9,3.06]
[1763830902313,2.34604559,127.96,127.9,3.06]
[1763830902921,0.15,128.02,127.93,3.06]
[1763830903212,0.2,127.98,127.94,3.06]
[1763830904001,0.2,127.98,127.9,131.9266]
[1763830904002,0.05312221,127.97,127.95,3.11327464]
[1763830904208,0.25312221,127.97,127.95,0.05327464]
[1763830905014,2.5991678,127.97,127.95,0.05327464]
[1763830905217,0.2,127.96,127.95,0.05327464]
[1763830907910,6.05313833,127.96,127.95,0.05327464]
[1763830908109,0.2,127.93,127.89,3.06]
[1763830909117,0.04928186,127.92,127.9,3.11089177]
[1763830912327,2.54604559,127.98,127.9,3.11089177]
[1763830912623,2.59604559,128.01,127.94,3.06]
[1763830913014,2.34604559,128.02,127.96,3.06]
[1763830913223,0.05464118,128.0,127.99,3.06]
[1763830913610,2.34604559,128.06,127.99,5.40604559]
[1763830913819,16.71,128.06,128.0,3.06]
[1763830914122,19.05604559,128.06,128.0,3.06]
[1763830914713,0.05223228,128.04,128.02,0.0584866]
[1763830915115,0.36223228,128.04,128.02,0.0584866]
[1763830915522,7.08603228,128.04,128.02,3.1184866]
[1763830915923,0.05223228,128.04,128.02,3.1184866]
[1763830918519,7.08603228,128.04,128.02,3.1184866]
[1763830919230,0.05223228,128.04,128.02,3.1184866]
[1763830922319,16.4,128.07,128.02,3.1184866]
[1763830922523,117.5178,128.12,128.02,3.1184866]
[1763830922825,117.5178,128.12,128.04,3.06]
[1763830922826,16.4,128.11,128.04,3.06]
[1763830923328,0.05750016,128.09,128.06,0.05958125]
[1763830923522,0.05750016,128.09,128.07,3.06]
[1763830923726,14.8354,128.14,128.07,3.06]
[1763830924130,7.0284,128.14,128.07,3.06]
[1763830924431,7.0288,128.13,128.07,3.06]
[1763830924725,0.05809377,128.11,128.1,3.06]
[1763830924929,109.6805,128.15,128.09,3.11403685]
[1763830924930,0.4781339,128.12,128.09,3.11403685]
[1763830925523,0.0581339,128.12,128.09,3.11403685]
[1763830925730,0.42,128.18,128.09,3.11403685]
[1763830925930,0.42,128.18,128.09,3.06]
[1763830926228,16.4,128.19,128.12,3.26]
[1763830926423,125.6549,128.23,128.12,3.26]
[1763830926617,125.6549,128.23,128.16,0.05802334]
[1763830926826,0.05465308,128.19,128.16,3.31802334]
[1763830927131,0.48465308,128.19,128.16,0.05802334]
[1763830927518,7.0262,128.18,128.16,0.05802334]
[1763830927718,7.4562,128.18,128.16,0.05802334]
[1763830927919,0.05465308,128.19,128.16,3.31802334]
[1763830928625,16.83,128.24,128.16,3.31802334]
[1763830928932,0.48,128.22,128.16,3.26]
[1763830929527,0.48,128.2,128.12,3.26]
[1763830929826,0.05439836,128.17,128.15,0.05985565]
[1763830930418,0.53439836,128.17,128.15,0.05985565]
[1763830931630,0.05439836,128.17,128.15,3.31985565]
[1763830932827,0.53439836,128.17,128.15,0.05985565]
[1763830933033,16.88,128.16,128.15,0.05985565]
[1763830933331,7.5076,128.15,128.08,3.26]
[1763830934123,0.05276491,128.13,128.1,3.31987021]
[1763830934319,0.53276491,128.13,128.1,3.31987021]
[1763830934530,0.53276491,128.13,128.1,0.05987021]
[1763830934927,0.53276491,128.13,128.1,3.31987021]
[1763830935631,0.05276491,128.13,128.1,3.31987021]
[1763830936227,0.48,128.12,128.1,0.05987021]
[1763830936627,16.88,128.12,128.1,0.05987021]
[1763830937430,23.9095,128.12,128.1,0.05987021]
[1763830937626,0.48,128.11,128.1,0.05987021]
[1763830939026,16.88,128.11,128.1,0.05987021]
[1763830941534,7.5109,128.09,128.04,3.26]
[1763830941734,16.4,128.08,128.04,3.26]
[1763830942639,0.05170596,128.07,128.05,3.3188233]
[1763830943133,0.53,128.18,128.08,3.26]
[1763830943341,16.4,128.17,128.08,3.26]
[1763830943532,16.4,128.17,128.1,3.26]
[1763830944038,0.04983751,128.15,128.12,3.30944277]
[1763830945024,0.53,128.21,128.13,3.26]
[1763830945228,16.93,128.21,128.13,3.26]
[1763830945635,0.53,128.24,128.15,3.26]
[1763830945831,0.53,128.22,128.15,3.26]
[1763830946027,0.05288493,128.2,128.17,3.31732855]
[1763830949231,94.19,128.25,128.17,3.31732855]
[1763830949232,0.53,128.25,128.17,3.31732855]
[1763830949441,16.4,128.25,128.17,3.26]
[1763830949641,7.0218,128.26,128.17,3.26]
[1763830949841,126.2156,128.25,128.17,3.26]
[1763830950038,0.58,128.24,128.17,3.26]
[1763830950240,0.05682819,128.22,128.19,3.31160246]
[1763830951238,7.6013,128.27,128.19,3.31160246]
[1763830951444,109.1992,128.29,128.19,3.26]
[1763830951634,109.8567,128.27,128.19,3.26]
[1763830952034,0.64,128.27,128.19,3.26]
[1763830952240,1.969e-05,128.24,128.23,3.26]
[1763830952543,0.7,128.33,128.24,3.26]
[1763830952730,0.7,128.33,128.25,3.26]
[1763830952936,23.4374,128.34,128.25,3.26]
[1763830953342,0.02821015,128.31,128.29,3.26]
[1763830953539,0.72821015,128.31,128.28,0.05323226]
[1763830953741,109.8905,128.3,128.28,0.05323226]
[1763830953943,17.12,128.29,128.28,0.05323226]
[1763830954130,24.1404,128.29,128.25,3.26]
[1763830954335,0.7,128.28,128.25,3.26]
[1763830954738,7.7208,128.28,128.19,7.0251]
[1763830954939,116.9282,128.28,128.2,3.26]
[1763830955143,0.05183206,128.25,128.23,3.30998039]
[1763830955547,0.05183206,128.25,128.23,0.04998039]
[1763830955948,0.05183206,128.25,128.23,3.16998039]
[1763830956835,0.05183206,128.25,128.23,0.04998039]
[1763830957342,0.05183206,128.25,128.23,3.16998039]
[1763830958243,0.69,128.31,128.23,3.16998039]
[1763830958447,16.42,128.3,128.23,3.12]
[1763830958843,0.74,128.29,128.23,3.12]
[1763830959244,0.02961035,128.27,128.25,0.05218874]
[1763830959943,0.02961035,128.27,128.25,3.12218874]
[1763830961456,0.76961035,128.27,128.25,0.05218874]
[1763830962750,16.42,128.26,128.25,0.05218874]
[1763830963257,7.05081035,128.27,128.25,0.05218874]
[1763830963449,16.44961035,128.27,128.25,0.05218874]
[1763830963649,0.02961035,128.27,128.25,3.12218874]
[1763830966653,0.02961035,128.27,128.25,0.05218874]
[1763830967960,0.02961035,128.27,128.25,3.12218874]
[1763830968757,0.02961035,128.27,128.25,0.05218874]
[1763830969160,0.02961035,128.27,128.25,3.12218874]
[1763830969959,0.74,128.33,128.26,3.07]
[1763830969960,7.0186,128.32,128.26,3.07]
[1763830970259,23.4186,128.32,128.26,3.07]
[1763830970457,7.7575,128.34,128.26,3.07]
[1763830970658,24.1575,128.34,128.26,3.07]
[1763830970959,16.4,128.35,128.3,3.07]
[1763830971159,16.4,128.35,128.31,0.04923613]
[1763830971358,16.4,128.35,128.32,3.07]
[1763830972057,23.4164,128.36,128.32,3.07]
[1763830973063,16.4,128.36,128.32,3.07]
[1763830973266,0.74,128.4,128.32,3.07]
[1763830973454,16.4,128.39,128.35,3.12772544]
[1763830974056,7.7542,128.4,128.35,3.12772544]
[1763830974264,16.4,128.39,128.35,3.12772544]
[1763830974763,7.0131,128.42,128.35,3.12772544]
[1763830974964,23.4131,128.42,128.35,3.12772544]
[1763830975263,16.4,128.42,128.35,3.12772544]
[1763830975565,0.74,128.41,128.35,3.12772544]
[1763830976059,0.74,128.4,128.35,3.12772544]
[1763830976254,0.74,128.39,128.35,0.05772544]
[1763830976454,16.4,128.38,128.35,0.05772544]
[1763830976765,0.74,128.36,128.35,0.05772544]
[1763830977657,7.7567,128.35,128.32,3.07]
[1763830978158,7.0174,128.34,128.32,3.07]
[1763830978364,16.4,128.34,128.28,3.07]
[1763830978766,0.04964318,128.32,128.3,0.05506675]
[1763830978966,0.04964318,128.32,128.3,3.12506675]
[1763830979467,0.04964318,128.32,128.3,0.05506675]
[1763830979857,109.8435,128.41,128.3,4.68506675]
[1763830980058,126.2435,128.41,128.3,3.07]
[1763830980471,17.14,128.41,128.33,3.07]
[1763830980767,16.4,128.4,128.33,3.07]
[1763830981071,24.1541,128.4,128.36,3.07]
[1763830981262,0.74,128.39,128.36,3.07]
[1763830981460,0.74,128.39,128.35,0.054733]
[1763830981661,0.74,128.39,128.35,3.124733]
[1763830982265,109.8624,128.38,128.35,0.054733]
[1763830982470,0.74,128.37,128.35,0.054733]
[1763830982669,17.14,128.36,128.35,0.054733]
[1763830983060,16.4,128.36,128.35,0.054733]
[1763830984171,17.14,128.36,128.35,0.054733]
[1763830985066,7.0172,128.34,128.29,3.07]
[1763830985262,16.4,128.33,128.29,3.07]
[1763830986073,16.4,128.33,128.24,115.2342]
[1763830986074,0.0499835,128.32,128.3,3.28874957]
[1763830986271,0.0499835,128.32,128.3,3.28643876]
[1763830991578,0.74,128.31,128.3,0.05643876]
[1763830992680,16.4499835,128.32,128.3,3.28643876]
[1763830992977,0.74,128.37,128.31,3.23]
[1763830993277,16.4,128.39,128.33,3.23]
[1763830993882,16.4,128.39,128.35,3.28714079]
[1763830994083,17.14,128.39,128.35,3.28714079]
[1763830994974,7.0151,128.38,128.35,0.05714079]
[1763830995179,0.74,128.38,128.35,0.05714079]
[1763830995384,17.14,128.39,128.35,3.28714079]
[1763830995584,24.1548,128.39,128.35,3.28714079]
[1763830995885,17.14,128.39,128.35,3.28714079]
[1763830996991,7.7552,128.38,128.35,0.05714079]
[1763830997784,0.74,128.36,128.35,0.05714079]
[1763830998385,17.14,128.36,128.35,0.05714079]
[1763830998785,16.4,128.36,128.35,0.05714079]
[1763830999786,17.14,128.36,128.35,0.05714079]
[1763831000181,7.0156,128.37,128.35,0.05714079]
[1763831000376,16.4,128.36,128.35,3.28714079]
[1763831000785,23.4147,128.39,128.35,3.28714079]
[1763831001483,7.0151,128.38,128.35,3.28714079]
[1763831002274,16.4,128.39,128.35,3.28714079]
[1763831002989,23.4145,128.39,128.35,3.28714079]
[1763831003190,17.14,128.39,128.35,3.28714079]
[1763831004185,7.015,128.38,128.35,3.28714079]
[1763831006491,0.74,128.36,128.35,0.05714079]
[1763831007492,7.7556,128.37,128.35,0.05714079]
[1763831007697,0.68,128.27,128.24,4.49893793]
[1763831007900,0.68,128.27,128.15,3.23]
[1763831007901,109.2786,128.2,128.11,3.23]
[1763831008201,109.268,128.21,128.13,3.23]
[1763831008202,6.48110863,128.21,128.13,3.23]
[1763831008400,122.77540863,128.21,128.13,3.23]
[1763831008599,16.56,128.2,128.14,5.47990462]
[1763831008788,116.37240566,128.18,128.16,0.05669266]
[1763831009103,6.31689824,128.17,128.16,0.05669266]
[1763831009287,16.56,128.17,128.16,0.05669266]
[1763831009898,116.36860566,128.18,128.05,13.51400863]
[1763831009899,116.3557,128.14,128.08,3.23]
[1763831010091,16.58,128.13,128.09,8.70990462]
[1763831010291,125.9195,128.13,128.09,3.23]
[1763831010498,7.0297,128.11,128.1,5.47990462]
[1763831010703,7.0297,128.11,128.05,3.23]
[1763831010901,125.9438,128.1,128.06,8.70990462]
[1763831011105,7.0314,128.08,128.07,0.05920727]
[1763831011296,225.7902,128.08,128.06,0.05519765]
[1763831011495,16.58,128.07,128.01,3.23]
[1763831011692,0.05994286,128.05,128.03,0.05462828]
[1763831011999,16.58,128.04,128.03,0.05462828]
[1763831012604,16.58,128.04,128.03,5.5345329]
[1763831012903,0.05994286,128.05,128.03,5.5345329]
[1763831013206,16.58,128.04,128.03,8.7645329]
[1763831013407,0.05994286,128.05,128.03,8.7645329]
[1763831013592,16.58,128.04,128.03,8.7645329]
[1763831013795,16.58,128.04,128.03,5.5345329]
[1763831019702,16.58,128.04,128.03,3.29e-05]
[1763831021504,7.0341,128.03,128.02,0.05053045]
[1763831022203,109.4301,128.02,127.93,2.99]
[1763831022508,109.4548,127.99,127.89,2.99]
[1763831022705,16.6,127.98,127.89,2.99]
[1763831023308,0.05179474,127.95,127.92,0.0532088]
[1763831023511,0.05179474,127.95,127.92,3.0432088]
[1763831024908,0.05179474,127.95,127.92,0.0532088]
[1763831027010,116.02360337,127.95,127.92,0.0532088]
[1763831027206,109.5017,127.94,127.92,0.0532088]
[1763831027611,16.6,127.93,127.92,0.0532088]
[1763831029106,23.6401,127.93,127.84,2.99]
[1763831029509,6.48110863,127.92,127.84,2.99]
[1763831030211,0.05762713,127.89,127.87,0.05097906]
[1763831030407,16.6,127.88,127.87,0.05097906]
[1763831031109,0.05762713,127.89,127.87,0.05097906]
[1763831031311,16.65762713,127.89,127.87,0.05097906]
[1763831031714,0.05762713,127.89,127.87,0.05097906]
[1763831032013,16.65762713,127.89,127.87,0.05097906]
[1763831032718,16.6,127.88,127.87,0.05097906]
[1763831032907,0.05762713,127.89,127.87,0.05097906]
[1763831032908,16.65762713,127.89,127.87,3.04097906]
[1763831033510,16.65762713,127.89,127.87,0.05097906]
[1763831034217,109.5647,127.87,127.8,2.99]
[1763831034415,116.04580863,127.87,127.77,2.99]
[1763831034614,16.6,127.86,127.78,2.99]
[1763831035214,0.05677667,127.83,127.81,0.05224497]
[1763831035915,0.05677667,127.83,127.81,3.04224497]
[1763831036617,0.05677667,127.83,127.81,0.05224497]
[1763831037223,0.05677667,127.83,127.81,3.04224497]
[1763831037922,16.6,127.88,127.82,2.99]
[1763831038114,7.0424,127.89,127.82,2.99]
[1763831038309,16.62,127.88,127.82,2.99]
[1763831038509,109.5341,127.9,127.82,2.99]
[1763831038716,16.6,127.89,127.82,2.99]
[1763831038910,0.04919546,127.87,127.85,0.05825436]
[1763831039116,16.62,127.86,127.85,0.05825436]
[1763831039423,7.09259546,127.87,127.85,0.05825436]
[1763831039625,16.62,127.86,127.85,0.05825436]
[1763831040221,7.09259546,127.87,127.85,0.05825436]
[1763831040420,16.62,127.86,127.85,0.05825436]
[1763831040819,0.04919546,127.87,127.85,0.05825436]
[1763831041024,0.04919546,127.87,127.85,3.04825436]
[1763831041217,16.66919546,127.87,127.85,3.04825436]
[1763831041416,16.66919546,127.87,127.85,0.05825436]
[1763831041721,16.66919546,127.87,127.85,3.04825436]
[1763831042126,0.04919546,127.87,127.85,3.04825436]
[1763831042627,16.62,127.9,127.85,3.04825436]
[1763831042825,7.0409,127.91,127.85,3.04825436]
[1763831043014,16.62,127.9,127.85,3.04825436]
[1763831043217,7.0409,127.91,127.85,3.04825436]
[1763831043423,0.05982311,127.89,127.86,2.99]
[1763831043620,0.05982311,127.89,127.86,3.03928547]
[1763831043813,0.05982311,127.89,127.86,0.04928547]
[1763831044920,7.0426,127.88,127.86,0.04928547]
[1763831045522,16.62,127.87,127.86,0.04928547]
[1763831046324,16.62,127.87,127.83,2.99]
[1763831046325,109.5745,127.85,127.77,3.12]
[1763831046525,109.592,127.83,127.74,3.12]
[1763831046832,109.592,127.83,127.74,11.53138225]
[1763831046833,7.0464,127.81,127.74,11.53138225]
[1763831047418,0.055189,127.79,127.76,3.1786832]
[1763831047617,16.62,127.84,127.76,112.8277832]
[1763831047927,16.62,127.84,127.77,3.12]
[1763831048326,16.62,127.84,127.78,3.12]
[1763831048632,0.05218983,127.82,127.8,3.17696452]
[1763831049526,0.05218983,127.82,127.8,0.05696452]
[1763831049936,16.67218983,127.82,127.8,0.05696452]
[1763831050730,23.71808983,127.82,127.8,0.05696452]
[1763831051525,7.0467,127.81,127.74,1.36158225]
[1763831052125,16.62,127.82,127.74,1.36158225]
[1763831052126,7.0469,127.8,127.74,1.36158225]
[1763831052527,0.05175921,127.78,127.76,0.05802441]
[1763831052936,16.67175921,127.78,127.76,0.05802441]
[1763831053631,0.05175921,127.78,127.76,3.17802441]
[1763831054724,0.05175921,127.78,127.76,0.05802441]
[1763831056529,0.05175921,127.78,127.7,3.12]
[1763831056731,16.62,127.77,127.7,3.12]
[1763831057126,109.6352,127.78,127.7,3.12]
[1763831057322,22.65957226,127.77,127.7,3.12]
[1763831057527,7.10868246,127.75,127.72,0.05560952]
[1763831057930,0.05888246,127.75,127.72,0.05560952]
[1763831058428,16.64,127.74,127.72,0.05560952]
[1763831058733,0.05888246,127.75,127.72,0.05560952]
[1763831058734,0.05888246,127.75,127.72,3.17560952]
[1763831058930,16.69888246,127.75,127.72,3.17560952]
[1763831059637,0.05888246,127.75,127.72,3.17560952]
[1763831060332,16.64,127.79,127.74,3.12]
[1763831060537,116.71662959,127.83,127.74,3.12]
[1763831060735,35.79742898,127.82,127.74,3.12]
[1763831061039,6.02107244,127.81,127.75,3.12]
[1763831061233,0.05746251,127.79,127.77,0.05297299]
[1763831061536,16.69746251,127.79,127.77,0.05297299]
[1763831061736,0.05746251,127.79,127.77,0.05297299]
[1763831062843,0.05746251,127.79,127.77,3.17297299]
[1763831063532,0.05746251,127.79,127.77,0.05297299]
[1763831064535,7.10506251,127.79,127.77,0.05297299]
[1763831065341,16.62,127.78,127.77,0.05297299]
[1763831065935,22.53975039,127.78,127.77,0.05297299]
[1763831066746,7.049,127.76,127.71,3.12]
[1763831067638,126.2576,127.78,127.66,127.71295515]
[1763831067639,0.05830338,127.75,127.72,3.17222849]
[1763831067942,0.05515846,127.75,127.72,3.17222849]
[1763831074250,16.6,127.82,127.73,3.12]
[1763831074442,16.62,127.82,127.73,3.12]
[1763831075139,0.05404244,127.79,127.76,10.22595833]
[1763831075444,0.05404244,127.79,127.77,3.12]
[1763831075844,0.05404244,127.79,127.76,0.05069562]
[1763831076442,23.72154244,127.79,127.76,0.05069562]
[1763831076941,7.0481,127.78,127.76,0.05069562]
[1763831080142,16.62,127.77,127.76,0.05069562]
[1763831083544,7.0481,127.78,127.76,0.05069562]
[1763831083744,16.65404244,127.79,127.76,3.19069562]
[1763831084639,23.70154244,127.79,127.76,0.05069562]
[1763831086853,16.65404244,127.79,127.76,3.19069562]
[1763831087950,23.70154244,127.79,127.76,0.05069562]
[1763831088153,16.65404244,127.79,127.76,0.05069562]
[1763831088551,7.048,127.78,127.76,0.05069562]
[1763831090746,16.6,127.77,127.76,0.05069562]
[1763831093058,7.048,127.78,127.76,0.05069562]
[1763831093357,16.58,127.77,127.76,3.19069562]
[1763831093653,16.58,127.78,127.76,3.19069562]
[1763831094057,16.58,127.78,127.76,0.05069562]
[1763831095158,16.58,127.77,127.76,3.19069562]
[1763831095661,16.58,127.78,127.76,3.19069562]
[1763831099049,23.6281,127.78,127.76,0.05069562]
[1763831100863,22.48323957,127.77,127.76,0.05069562]
[1763831101262,132.12973957,127.77,127.68,3.14]
[1763831101460,109.6535,127.76,127.68,3.14]
[1763831101763,7.0519,127.71,127.66,4.50235515]
[1763831101959,23.6319,127.71,127.66,4.50235515]
[1763831102167,16.58,127.71,127.66,4.50235515]
[1763831102358,7.10507493,127.7,127.67,0.05915966]
[1763831102961,7.053,127.69,127.67,0.05915966]
[1763831103264,16.58,127.68,127.67,0.05915966]
[1763831104064,16.58,127.69,127.67,0.05915966]
[1763831104466,0.05257493,127.7,127.67,3.19915966]
[1763831104970,0.05257493,127.7,127.68,3.14]
[1763831105566,0.05257493,127.7,127.67,0.05915966]
[1763831105863,0.05257493,127.7,127.67,3.28915966]
[1763831106361,0.05257493,127.7,127.67,0.05915966]
[1763831106563,16.58,127.69,127.67,0.05915966]
[1763831106760,16.58,127.68,127.67,0.05915966]
[1763831107361,109.7337,127.67,127.6,1.36304884]
[1763831107963,126.3034,127.68,127.6,1.36304884]
[1763831108163,126.3034,127.68,127.59,3.23]
[1763831108669,0.05281259,127.65,127.62,0.05327238]
[1763831109059,16.65281259,127.65,127.62,0.05327238]
[1763831109570,23.70811259,127.65,127.62,0.05327238]
[1763831110368,7.0558,127.64,127.62,0.05327238]
[1763831110558,16.65281259,127.65,127.62,0.05327238]
[1763831110762,0.05281259,127.65,127.62,10.33977238]
[1763831110964,0.05281259,127.65,127.63,3.23]
[1763831114464,0.05281259,127.65,127.62,0.05327238]
[1763831116072,7.10811259,127.65,127.62,0.05327238]
[1763831117071,23.6358,127.64,127.62,0.05327238]
[1763831117974,23.6358,127.64,127.57,3.23]
[1763831117975,7.0574,127.61,127.57,3.23]
[1763831118176,16.58,127.6,127.57,3.23]
[1763831118978,16.63370414,127.6,127.57,0.05346496]
[1763831119172,7.11170414,127.6,127.57,0.05346496]
[1763831119375,16.58,127.59,127.57,3.28346496]
[1763831119575,0.05370414,127.6,127.57,10.34276496]
[1763831119782,0.05370414,127.6,127.57,3.28346496]
[1763831122181,0.05370414,127.6,127.59,3.23]
[1763831123980,0.05370414,127.6,127.57,7.11276496]
[1763831124186,0.05370414,127.6,127.58,3.23]
[1763831124577,0.05370414,127.6,127.59,3.23]
[1763831125484,109.7005,127.71,127.6,3.23]
[1763831125681,109.7063,127.7,127.6,3.23]
[1763831125882,126.293,127.69,127.6,3.23]
[1763831126580,0.0509052,127.66,127.63,0.05922538]
[1763831126982,7.1055052,127.66,127.63,0.05922538]
[1763831128684,16.6,127.65,127.63,0.05922538]
[1763831128881,7.1055052,127.66,127.63,3.28922538]
[1763831128882,0.0509052,127.66,127.63,3.28922538]
[1763831129783,14.48399,127.72,127.64,3.23]
[1763831129974,31.06399,127.72,127.64,3.23]
[1763831130586,14.48399,127.72,127.67,3.23]
[1763831130779,7.1092439,127.71,127.68,0.05234957]
[1763831130984,0.0573439,127.71,127.68,0.05234957]
[1763831131385,109.7206,127.68,127.62,3.23]
[1763831131588,16.6,127.67,127.62,3.23]
[1763831131985,7.0552,127.65,127.62,3.23]
[1763831132391,7.11070243,127.65,127.62,3.28687425]
[1763831132985,7.0557,127.64,127.62,0.05687425]
[1763831135992,0.05550243,127.65,127.62,3.10687425]
[1763831136493,0.05550243,127.65,127.62,0.05687425]
[1763831136891,7.0557,127.64,127.62,0.05687425]
[1763831140498,16.6,127.63,127.62,0.05687425]
[1763831140902,7.0557,127.64,127.62,0.05687425]
[1763831141196,16.6,127.63,127.62,0.05687425]
[1763831142806,7.0558,127.64,127.62,0.05687425]
[1763831143097,23.6558,127.64,127.62,0.05687425]
[1763831145392,16.6,127.63,127.62,0.05687425]
[1763831146199,7.0558,127.64,127.62,0.05687425]
[1763831146500,16.6,127.64,127.62,0.05687425]
[1763831146697,0.05550243,127.65,127.62,3.15687425]
[1763831147293,0.05550243,127.65,127.62,0.05687425]
[1763831147690,7.0558,127.64,127.62,0.05687425]
[1763831147895,16.6,127.63,127.62,0.05687425]
[1763831148703,7.0558,127.64,127.62,0.05687425]
[1763831149002,18.95914771,127.63,127.62,0.05687425]
[1763831149203,2.35914771,127.63,127.62,0.05687425]
[1763831149699,18.95914771,127.63,127.62,0.05687425]
[1763831150005,23.6558,127.64,127.62,0.05687425]
[1763831150407,0.05550243,127.65,127.62,3.15687425]
[1763831151604,23.71070243,127.65,127.62,0.05687425]
[1763831152807,7.11070243,127.65,127.62,3.15687425]
[1763831153006,23.71070243,127.65,127.62,3.15687425]
[1763831154410,7.11070243,127.65,127.62,3.15687425]
[1763831154608,7.11070243,127.65,127.62,0.05687425]
[1763831154809,7.0557,127.64,127.62,0.05687425]
[1763831155410,16.6,127.63,127.62,0.05687425]
[1763831157312,7.0557,127.64,127.62,0.05687425]
[1763831157514,16.6,127.63,127.62,0.05687425]
[1763831157816,7.0557,127.64,127.62,0.05687425]
[1763831158111,16.6,127.63,127.62,0.05687425]
[1763831159816,7.0557,127.64,127.62,0.05687425]
[1763831160015,16.58,127.63,127.62,0.05687425]
[1763831160812,7.0557,127.64,127.62,0.05687425]
[1763831161112,16.58,127.63,127.62,0.05687425]
[1763831161906,7.0557,127.64,127.62,0.05687425]
[1763831162213,16.58,127.63,127.62,0.05687425]
[1763831163510,7.0557,127.64,127.62,0.05687425]
[1763831163711,16.58,127.63,127.62,0.05687425]
[1763831165111,7.0557,127.64,127.62,0.05687425]
[1763831165312,16.58,127.63,127.62,0.05687425]
[1763831168513,7.0557,127.64,127.62,0.05687425]
[1763831168816,23.6357,127.64,127.62,0.05687425]
[1763831169719,0.05550243,127.65,127.62,0.05687425]
[1763831169913,16.6,127.64,127.62,3.32687425]
[1763831170918,16.6,127.64,127.62,0.05687425]
[1763831171115,23.656,127.64,127.62,0.05687425]
[1763831171714,16.6,127.63,127.62,0.05687425]
[1763831173113,0.05550243,127.65,127.62,3.32687425]
[1763831173415,16.58,127.64,127.62,3.32687425]
[1763831173911,0.05550243,127.65,127.62,3.32687425]
[1763831174112,16.63550243,127.65,127.62,3.32687425]
[1763831174511,16.63550243,127.65,127.62,0.05687425]
[1763831174820,130.07084639,127.65,127.62,0.05687425]
[1763831175019,7.0558,127.64,127.62,0.05687425]
[1763831177811,16.58,127.63,127.62,0.05687425]
[1763831183119,7.0558,127.64,127.62,0.05687425]
[1763831183313,16.58,127.63,127.62,0.05687425]
[1763831184518,20.26544396,127.63,127.62,0.05687425]
[1763831184717,109.7812,127.61,127.53,14.57606585]
[1763831184923,16.56,127.6,127.53,14.57606585]
[1763831185122,16.56,127.6,127.53,17.84606585]
[1763831185518,7.059,127.58,127.54,3.27]
[1763831185822,16.63657299,127.57,127.55,0.05835665]
[1763831186119,16.63657299,127.57,127.55,3.32835665]
[1763831186120,0.05657299,127.57,127.55,3.32835665]
[1763831186325,16.63657299,127.57,127.55,3.32835665]
[1763831186923,16.63657299,127.57,127.55,0.05835665]
[1763831187725,16.63657299,127.57,127.55,3.32835665]
[1763831187924,0.05657299,127.57,127.55,3.32835665]
[1763831188120,16.58,127.61,127.56,3.27]
[1763831188924,7.27275536,127.68,127.66,3.27]
[1763831189125,13.03896,127.71,127.66,3.27]
[1763831189430,0.05739066,127.7,127.67,3.32177518]
[1763831191615,0.05739066,127.7,127.67,0.05177518]
[1763831191823,0.05739066,127.7,127.67,3.32177518]